bitfinex/quotes_ETHUSD_20250324
["timestamp","ask_amount","ask_price","bid_price","bid_amount"]
[1742845870485,4.78262,2090.9,2090.8,4.555]
[1742845873142,4.78241,2091.0,2090.8,4.555]
[1742845873644,4.78262,2090.9,2090.8,4.555]
[1742845873826,4.78246,2091.0,2090.8,4.555]
[1742845874338,4.78246,2091.0,2090.5,5.95894995]
[1742845874554,5.60354,2090.5,2090.4,25.283]
[1742845874860,5.60354,2090.5,2090.4,29.837]
[1742845876058,5.73735833,2090.5,2090.4,29.837]
[1742845878528,5.73735833,2090.5,2090.4,29.838]
[1742845882562,4.91735833,2090.5,2090.4,29.838]
[1742845883058,0.13381833,2090.5,2090.4,29.838]
[1742845883286,4.91735833,2090.5,2090.4,29.838]
[1742845883737,4.91735833,2090.5,2090.4,33.382101]
[1742845883738,0.13381833,2090.5,2090.4,33.382101]
[1742845884062,4.91735833,2090.5,2090.4,29.838]
[1742845886547,4.91735833,2090.5,2090.4,4.555]
[1742845887268,4.78404,2090.3,2090.1,26.1084]
[1742845887470,4.78404,2090.3,2090.2,4.555]
[1742845888269,4.78378,2090.4,2090.2,4.555]
[1742845888642,9.56773,2090.4,2090.2,4.555]
[1742845888960,4.784,2090.3,2090.2,4.555]
[1742845890950,0.11886313,2090.3,2090.2,4.555]
[1742845891993,4.90286313,2090.3,2090.2,4.555]
[1742845895287,4.78423,2090.2,2090.1,25.285]
[1742845895494,4.78423,2090.2,2090.1,29.84]
[1742845895812,4.90228727,2090.2,2090.1,29.84]
[1742845895989,4.90228727,2090.2,2090.1,25.285]
[1742845896187,6.52780043,2090.2,2090.1,4.555]
[1742845896494,4.78509,2089.9,2089.6,26.0389]
[1742845896683,4.78509,2089.9,2089.7,4.555]
[1742845896994,0.11609499,2089.8,2089.7,4.555]
[1742845897366,4.90125499,2089.8,2089.7,4.555]
[1742845899465,4.78537,2089.7,2089.6,25.286]
[1742845899669,4.78537,2089.7,2089.6,29.841]
[1742845899855,4.88862377,2089.7,2089.6,29.841]
[1742845900260,4.88862377,2089.7,2089.6,25.286]
[1742845900460,4.88862377,2089.7,2089.6,29.841]
[1742845901500,0.10325377,2089.7,2089.6,32.88056157]
[1742845901687,0.10325377,2089.7,2089.6,33.66456157]
[1742845901885,9.57006,2089.9,2089.6,33.66456157]
[1742845902072,0.10059652,2089.7,2089.6,33.66456157]
[1742845902275,4.78514,2089.8,2089.6,33.66456157]
[1742845902600,0.10059652,2089.7,2089.6,35.4106]
[1742845902812,4.78448,2090.1,2089.7,4.78534]
[1742845903165,4.78493,2089.9,2089.6,35.41053]
[1742845903366,0.10297452,2089.8,2089.6,30.625]
[1742845903590,0.10297452,2089.8,2089.7,3.57636713]
[1742845903802,4.78472,2090.0,2089.7,3.57636713]
[1742845903980,0.10297452,2089.8,2089.7,3.57636713]
[1742845904181,4.78472,2090.0,2089.7,3.57636713]
[1742845904365,0.10403575,2089.9,2089.7,3.57636713]
[1742845904702,0.10403575,2089.9,2089.8,3.42013671]
[1742845905106,4.7847,2090.0,2089.8,3.42013671]
[1742845905303,0.10403575,2089.9,2089.8,3.42013671]
[1742845906505,9.56912,2090.1,2089.8,3.42013671]
[1742845906805,4.78448,2090.1,2089.8,3.42013671]
[1742845906966,0.10453324,2090.0,2089.8,3.42013671]
[1742845907168,0.10453324,2090.0,2089.9,0.82053667]
[1742845907569,4.88921324,2090.0,2089.9,0.82053667]
[1742845907770,4.88921324,2090.0,2089.8,3.42013671]
[1742845909050,0.10453324,2090.0,2089.8,3.42013671]
[1742845909714,4.88923324,2090.0,2089.8,3.42013671]
[1742845910008,4.88923324,2090.0,2089.6,35.41055]
[1742845910432,4.7847,2090.0,2089.6,35.41055]
[1742845910644,0.7973,2090.2,2089.6,29.841]
[1742845910801,4.78537,2089.7,2089.6,25.286]
[1742845911128,4.78537,2089.7,2089.6,29.841]
[1742845911129,5.822962,2089.7,2089.6,29.841]
[1742845911332,4.87627542,2089.7,2089.6,29.841]
[1742845914299,4.78537,2089.7,2089.6,29.841]
[1742845920211,14.61807,2089.7,2089.6,25.286]
[1742845920937,4.78697,2089.0,2088.9,25.295]
[1742845921139,4.78697,2089.0,2088.9,29.85]
[1742845921739,5.58153,2089.2,2088.9,29.85]
[1742845921943,6.01,2089.4,2089.0,0.8038]
[1742845922134,4.78605,2089.5,2089.2,0.8038]
[1742845922334,4.78606,2089.4,2089.3,0.559041]
[1742845922553,4.78606,2089.4,2089.2,0.8038]
[1742845924066,9.57232,2089.4,2089.0,5.60068]
[1742845924427,9.57228,2089.4,2089.0,5.6006]
[1742845924627,4.78606,2089.4,2089.0,5.6006]
[1742845924827,4.78606,2089.4,2089.1,4.555]
[1742845925131,4.78606,2089.4,2089.1,8.61458411]
[1742845925359,4.78631,2089.3,2089.1,4.05958411]
[1742845925535,4.78666,2089.2,2088.9,25.65304109]
[1742845925870,4.78666,2089.2,2089.0,4.555]
[1742845927376,4.78607,2089.4,2089.0,9.34197]
[1742845927669,4.78607,2089.4,2089.1,0.8138]
[1742845927869,4.7863,2089.3,2089.1,0.8138]
[1742845928430,4.78612,2089.4,2089.1,4.87340311]
[1742845928867,9.57235,2089.4,2089.1,4.87340311]
[1742845929432,4.78633,2089.3,2089.1,4.87340311]
[1742845930258,4.7858,2089.6,2089.1,4.87340311]
[1742845930465,10.79553,2089.7,2089.3,4.7861]
[1742845930672,10.79553,2089.7,2089.4,0.47861]
[1742845930837,10.79553,2089.7,2089.5,4.556]
[1742845931234,6.01,2089.7,2089.5,4.556]
[1742845933047,10.79542,2089.7,2089.5,4.556]
[1742845933557,6.01,2089.7,2089.5,4.556]
[1742845933754,6.01,2089.7,2089.6,4.7856]
[1742845933953,4.78508,2089.9,2089.5,9.34177]
[1742845934158,4.78508,2089.9,2089.5,10.878297]
[1742845934695,4.78547,2089.7,2089.5,4.556]
[1742845934875,4.7856,2089.6,2089.5,4.556]
[1742845935677,4.78547,2089.7,2089.5,4.556]
[1742845936069,5.60964,2089.9,2089.5,4.556]
[1742845936070,4.7852,2089.8,2089.5,4.556]
[1742845936658,9.57051,2089.8,2089.5,4.556]
[1742845937179,4.78538,2089.7,2089.5,4.556]
[1742845937355,4.7856,2089.6,2089.5,4.556]
[1742845938085,9.57137,2089.6,2089.5,4.555]
[1742845938400,4.7856,2089.6,2089.5,4.555]
[1742845940371,4.78583,2089.5,2089.4,25.297]
[1742845940579,4.78583,2089.5,2089.4,29.852]
[1742845940788,6.509573,2089.5,2089.4,29.852]
[1742845942082,6.509573,2089.5,2089.4,25.297]
[1742845942278,6.509573,2089.5,2089.4,29.852]
[1742845944514,6.509573,2089.5,2089.4,4.555]
[1742845945920,6.01,2089.6,2089.4,4.555]
[1742845946749,10.79561,2089.6,2089.4,4.555]
[1742845946955,4.78583,2089.5,2089.3,0.7838]
[1742845947247,4.78606,2089.4,2089.3,0.7838]
[1742845947453,4.78606,2089.4,2089.3,5.3388]
[1742845947951,10.79562,2089.6,2089.3,5.3388]
[1742845948551,4.78593,2089.5,2089.3,5.3388]
[1742845950157,4.78615,2089.4,2089.2,25.297]
[1742845950342,4.78615,2089.4,2089.3,4.555]
[1742845954784,4.78629,2089.3,2089.2,25.297]
[1742845955080,4.78629,2089.3,2089.2,29.852]
[1742845958261,4.78629,2089.3,2089.2,25.297]
[1742845958608,4.78629,2089.3,2089.2,29.852]
[1742845958609,5.60779,2089.3,2089.2,29.852]
[1742845958780,7.125768,2089.3,2089.2,25.297]
[1742845958982,4.78706,2089.0,2088.7,26.1126]
[1742845959198,4.78706,2089.0,2088.8,4.555]
[1742845959374,4.78706,2089.0,2088.7,26.1126]
[1742845959574,4.7872,2088.9,2088.7,26.1126]
[1742845959783,4.7872,2088.9,2088.8,4.555]
[1742845960312,4.78676,2089.1,2088.8,4.555]
[1742845960611,11.61797,2089.3,2088.9,3.06676]
[1742845960811,6.01,2089.3,2089.2,4.78652]
[1742845961021,9.57187,2089.5,2089.1,4.78657]
[1742845961224,4.78614,2089.4,2089.1,4.78673]
[1742845961397,9.57183,2089.5,2089.1,4.78656]
[1742845961597,4.78583,2089.5,2089.2,1.035353]
[1742845961801,9.5718,2089.5,2089.3,4.555]
[1742845962005,4.78583,2089.5,2089.3,4.555]
[1742845962333,9.57182,2089.5,2089.3,4.555]
[1742845962636,4.78583,2089.5,2089.3,4.555]
[1742845962928,9.57184,2089.5,2089.3,4.555]
[1742845963631,4.78583,2089.5,2089.3,4.555]
[1742845963834,10.79517,2089.8,2089.3,4.555]
[1742845963835,4.78542,2089.7,2089.3,11.094166]
[1742845964128,4.78549,2089.7,2089.3,11.094166]
[1742845964330,9.57104,2089.7,2089.3,11.094166]
[1742845964514,4.78549,2089.7,2089.3,11.094166]
[1742845964689,4.78562,2089.6,2089.3,11.094166]
[1742845964882,4.78587,2089.5,2089.3,6.307956]
[1742845965288,4.78568,2089.6,2089.3,6.307956]
[1742845965718,5.55615,2089.8,2089.4,4.78591]
[1742845965917,5.55615,2089.8,2089.4,5.93159404]
[1742845965918,4.78515,2089.8,2089.4,5.93159404]
[1742845966144,4.78538,2089.7,2089.4,5.97944991]
[1742845966347,9.57092,2089.7,2089.4,1.14572404]
[1742845966551,4.78543,2089.7,2089.4,1.14572404]
[1742845968334,4.78543,2089.7,2089.5,0.8145]
[1742845969541,4.7856,2089.6,2089.5,0.8145]
[1742845971155,4.78544,2089.7,2089.5,0.8145]
[1742845972863,4.7856,2089.6,2089.5,0.8145]
[1742845973060,4.78609,2089.4,2089.2,1.16077438]
[1742845973266,4.78629,2089.3,2089.1,25.298]
[1742845973435,4.78629,2089.3,2089.2,4.554]
[1742845974377,4.78609,2089.4,2089.2,4.554]
[1742845974870,9.57231,2089.4,2089.2,4.554]
[1742845975076,4.78629,2089.3,2089.2,4.554]
[1742845975452,4.78652,2089.2,2089.1,25.298]
[1742845975648,4.78652,2089.2,2089.1,29.852]
[1742845976184,4.78629,2089.3,2089.1,29.852]
[1742845978192,4.78607,2089.4,2089.1,29.852]
[1742845978501,4.78607,2089.4,2089.1,34.63869]
[1742845978797,4.78584,2089.5,2089.1,39.42524]
[1742845979009,4.78612,2089.4,2089.1,34.63855]
[1742845979168,4.78612,2089.4,2089.1,29.852]
[1742845979568,4.78615,2089.4,2089.1,29.852]
[1742845980102,9.5724,2089.4,2089.1,29.852]
[1742845980288,9.57239,2089.4,2089.1,29.852]
[1742845980490,4.78615,2089.4,2089.1,29.852]
[1742845981102,9.5724,2089.4,2089.1,29.852]
[1742845981309,4.78615,2089.4,2089.1,29.852]
[1742845982207,9.57239,2089.4,2089.1,29.852]
[1742845982370,4.78615,2089.4,2089.1,29.852]
[1742845982972,4.78615,2089.4,2089.1,4.554]
[1742845983607,4.78615,2089.4,2089.1,9.34068]
[1742845983779,4.78615,2089.4,2089.1,4.554]
[1742845984997,4.78615,2089.4,2089.1,9.34073]
[1742845985397,4.78615,2089.4,2089.1,4.554]
[1742845985600,4.78636,2089.3,2089.1,4.554]
[1742845985796,4.78652,2089.2,2089.1,4.554]
[1742845985970,4.78635,2089.3,2089.1,4.554]
[1742845986498,6.550984,2089.6,2089.1,4.554]
[1742845986715,6.550984,2089.6,2089.0,26.0954]
[1742845986716,4.78649,2089.3,2089.2,4.554]
[1742845987299,4.78659,2089.2,2089.0,25.298]
[1742845987504,4.78659,2089.2,2089.1,4.554]
[1742845988702,4.78659,2089.2,2089.0,25.298]
[1742845989000,4.78659,2089.2,2089.1,4.554]
[1742845989299,4.78675,2089.1,2089.0,25.298]
[1742845989466,5.743848,2089.2,2089.0,29.852]
[1742845990013,10.530528,2089.2,2089.0,29.852]
[1742845990302,5.743848,2089.2,2089.0,29.852]
[1742845990484,4.78632,2089.3,2089.0,29.852]
[1742845990485,4.78613,2089.4,2089.1,4.78675]
[1742845990798,4.78591,2089.5,2089.2,5.61524]
[1742845990962,4.78591,2089.5,2089.2,0.8288]
[1742845991167,4.78591,2089.5,2089.2,5.61525]
[1742845991369,4.78591,2089.5,2089.2,9.640641]
[1742845991609,10.79551,2089.7,2089.2,10.00001579]
[1742845991819,4.78567,2089.6,2089.2,10.00001579]
[1742845992102,6.01,2089.7,2089.2,5.21371579]
[1742845992400,4.7851,2089.9,2089.5,5.57281]
[1742845992611,7.7851,2089.9,2089.6,4.554]
[1742845993103,4.78518,2089.8,2089.6,4.554]
[1742845993505,7.78507,2089.9,2089.6,4.554]
[1742845993804,7.78502,2089.9,2089.6,4.554]
[1742845994892,3.0,2089.9,2089.6,4.554]
[1742845995279,4.7847,2090.0,2089.6,9.38737096]
[1742845995484,4.7847,2090.0,2089.6,10.8355341]
[1742845996120,0.8324,2090.2,2089.6,10.8355341]
[1742845996121,0.8324,2090.2,2089.6,4.554]
[1742845996342,4.78537,2089.7,2089.6,4.554]
[1742845998145,4.78525,2089.8,2089.6,4.554]
[1742845998616,9.57004,2089.9,2089.6,4.554]
[1742845999340,4.78493,2089.9,2089.6,4.554]
[1742845999546,9.57003,2089.9,2089.6,4.554]
[1742845999730,4.78516,2089.8,2089.6,4.554]
[1742845999940,4.78537,2089.7,2089.6,4.554]
[1742846000249,4.78537,2089.7,2089.6,4.553]
[1742846002576,4.78606,2089.4,2089.3,25.296]
[1742846002741,5.74326,2089.4,2089.3,29.849]
[1742846002946,4.78606,2089.4,2089.3,29.849]
[1742846004766,4.78606,2089.4,2089.3,25.296]
[1742846004975,4.78606,2089.4,2089.3,29.849]
[1742846005286,1.038613,2089.9,2089.4,5.53864]
[1742846005287,4.78522,2089.8,2089.4,5.53864]
[1742846005445,9.57054,2089.8,2089.4,5.53864]
[1742846005645,9.57054,2089.8,2089.4,9.556012]
[1742846005963,4.78522,2089.8,2089.4,9.556012]
[1742846006360,9.57054,2089.8,2089.4,9.556012]
[1742846010289,4.78548,2089.7,2089.4,0.7527]
[1742846010460,4.78574,2089.6,2089.4,0.7527]
[1742846010945,5.59699,2090.0,2089.4,0.7527]
[1742846011275,3.0,2090.2,2089.8,4.78511]
[1742846011276,10.79434,2090.2,2089.8,4.78511]
[1742846011466,4.78434,2090.2,2089.9,4.553]
[1742846011784,4.78449,2090.1,2089.9,4.553]
[1742846012479,9.56914,2090.1,2089.9,4.553]
[1742846013250,4.78449,2090.1,2089.9,4.553]
[1742846013450,9.56912,2090.1,2089.9,4.553]
[1742846013655,4.78468,2090.0,2089.9,4.553]
[1742846015078,6.300143,2090.0,2089.9,4.553]
[1742846015581,4.78468,2090.0,2089.9,4.553]
[1742846034598,6.01,2090.2,2089.9,4.553]
[1742846034788,10.79425,2090.2,2089.9,4.553]
[1742846034989,4.78425,2090.2,2090.0,0.7758]
[1742846035386,4.78386,2090.4,2090.0,0.7758]
[1742846035568,4.78386,2090.4,2090.1,1.06398705]
[1742846035767,9.56781,2090.4,2090.1,1.01614742]
[1742846036091,4.78386,2090.4,2090.2,0.7514]
[1742846036409,9.56736,2090.5,2090.2,0.7514]
[1742846036902,4.78362,2090.5,2090.2,0.7514]
[1742846037217,10.79334,2090.6,2090.2,1.92125393]
[1742846037397,4.78334,2090.6,2090.3,5.53539]
[1742846037594,4.78316,2090.7,2090.4,4.551]
[1742846037799,6.01,2091.0,2090.6,4.78313]
[1742846037969,6.01,2091.0,2090.7,0.79922624]
[1742846038800,4.7822,2091.1,2090.7,0.79922624]
[1742846038991,4.7822,2091.1,2090.8,3.83883562]
[1742846039185,4.7822,2091.1,2090.9,4.551]
[1742846039766,4.78262,2090.9,2090.6,25.292]
[1742846039978,4.7824,2091.0,2090.7,4.551]
[1742846040316,4.7824,2091.0,2090.7,8.69679348]
[1742846041005,9.56491,2091.0,2090.7,8.69679348]
[1742846041233,4.7824,2091.0,2090.7,8.69679348]
[1742846041410,4.78266,2090.9,2090.7,8.69679348]
[1742846042208,4.7824,2091.0,2090.7,8.69679348]
[1742846042401,9.56495,2091.0,2090.7,8.69679348]
[1742846042601,9.56494,2091.0,2090.7,8.69679348]
[1742846043109,4.78269,2090.9,2090.7,8.69679348]
[1742846043313,4.78279,2090.9,2090.8,4.551]
[1742846047332,4.78246,2091.0,2090.8,5.3423]
[1742846047501,4.7822,2091.1,2090.8,5.3423]
[1742846047824,10.79198,2091.2,2090.9,1.01731638]
[1742846048126,15.57414,2091.2,2090.9,1.01731638]
[1742846048290,4.78217,2091.1,2090.9,1.01731638]
[1742846049310,10.79198,2091.2,2090.8,5.3423]
[1742846049705,4.78198,2091.2,2090.8,5.3423]
[1742846050024,4.78198,2091.2,2090.8,5.3901222]
[1742846050240,6.8369,2091.5,2090.8,5.3901222]
[1742846050392,6.01,2091.9,2091.1,0.7913]
[1742846050592,4.78049,2091.9,2091.4,5.57276]
[1742846050795,4.7802,2092.0,2091.5,4.549]
[1742846050796,4.78101,2091.7,2091.5,4.549]
[1742846051192,4.78052,2091.9,2091.5,4.549]
[1742846051193,4.78061,2091.8,2091.5,4.549]
[1742846051937,4.78052,2091.9,2091.5,4.549]
[1742846052232,4.78044,2091.9,2091.5,4.549]
[1742846052533,4.78035,2091.9,2091.6,0.7576]
[1742846053134,4.78022,2092.0,2091.6,0.7576]
[1742846053433,9.55995,2092.1,2091.6,6.59505779]
[1742846053637,4.78011,2092.0,2091.6,6.59505779]
[1742846053995,4.77992,2092.1,2091.6,6.59505779]
[1742846054306,9.55999,2092.1,2091.6,6.59505779]
[1742846054486,4.78023,2092.0,2091.6,1.81416779]
[1742846054691,4.78023,2092.0,2091.6,1.766363]
[1742846054930,4.78048,2091.9,2091.6,0.7576]
[1742846055315,4.78057,2091.8,2091.7,4.548]
[1742846055630,4.78123,2091.6,2091.2,0.8228]
[1742846055826,4.78105,2091.6,2091.3,4.548]
[1742846056497,4.78105,2091.6,2091.2,4.7819]
[1742846056911,4.78128,2091.5,2091.1,4.78212]
[1742846057105,4.78128,2091.5,2091.1,1.56445148]
[1742846057332,4.78106,2091.6,2091.1,6.34653148]
[1742846057534,4.78106,2091.6,2091.2,4.82972398]
[1742846057729,4.78106,2091.6,2091.2,9.37772371]
[1742846058031,6.01,2091.9,2091.4,4.78139]
[1742846058032,10.79049,2091.9,2091.4,4.78139]
[1742846058237,10.79049,2091.9,2091.4,6.192449]
[1742846058416,6.09951162,2091.9,2091.5,4.78112]
[1742846058619,6.01,2091.9,2091.5,4.78112]
[1742846059001,10.79034,2091.9,2091.6,25.275]
[1742846059202,10.79034,2091.9,2091.7,4.548]
[1742846059502,6.01,2091.9,2091.7,5.3166]
[1742846059722,6.01,2091.9,2091.7,8.777012]
[1742846060603,4.78057,2091.8,2091.7,4.548]
[1742846062210,4.78036,2091.9,2091.7,4.548]
[1742846064037,4.78011,2092.0,2091.7,4.548]
[1742846068502,4.7799,2092.1,2091.7,4.548]
[1742846068839,4.78012,2092.0,2091.7,4.548]
[1742846069012,5.59184,2092.2,2091.8,0.8245]
[1742846069415,4.77974,2092.2,2091.8,0.8245]
[1742846069737,10.78947,2092.3,2091.8,0.8245]
[1742846069949,4.77947,2092.3,2091.8,5.60498]
[1742846070459,4.77947,2092.3,2091.8,5.95635436]
[1742846070660,6.01,2092.5,2092.1,4.77977]
[1742846070819,0.08965083,2092.3,2092.2,4.547]
[1742846071130,4.7789,2092.6,2092.2,4.547]
[1742846071448,4.77901,2092.5,2092.2,4.547]
[1742846072348,9.55819,2092.5,2092.2,4.547]
[1742846072509,4.77901,2092.5,2092.2,4.547]
[1742846072911,8.59849,2092.8,2092.2,4.547]
[1742846072912,4.77942,2092.3,2092.2,4.547]
[1742846073112,4.77924,2092.4,2092.2,4.547]
[1742846073546,4.77901,2092.5,2092.2,4.547]
[1742846073763,9.55818,2092.5,2092.2,4.547]
[1742846074321,4.77924,2092.4,2092.2,4.547]
[1742846074514,4.77901,2092.5,2092.2,4.547]
[1742846075114,4.77901,2092.5,2092.3,0.7577]
[1742846075730,4.77875,2092.6,2092.3,0.7577]
[1742846076163,4.77897,2092.5,2092.3,0.7577]
[1742846076530,4.77902,2092.5,2092.3,0.7577]
[1742846077254,4.77877,2092.6,2092.3,0.7577]
[1742846077425,9.55772,2092.6,2092.3,0.7577]
[1742846078463,4.77877,2092.6,2092.3,0.7577]
[1742846078969,9.55764,2092.6,2092.3,0.7577]
[1742846080172,0.7808,2092.8,2092.3,0.7577]
[1742846080369,13.69059808,2093.6,2092.3,0.7577]
[1742846080370,4.03381266,2093.3,2092.9,4.77783]
[1742846080669,0.01,2093.4,2093.1,0.785]
[1742846080975,0.01,2093.4,2093.2,4.546]
[1742846081170,4.78701,2093.4,2093.2,4.546]
[1742846081369,0.01,2093.4,2093.2,4.546]
[1742846081771,4.78708,2093.4,2093.2,4.546]
[1742846082274,0.01,2093.4,2093.2,4.546]
[1742846082476,4.78702,2093.4,2093.2,4.546]
[1742846083168,0.01,2093.4,2093.2,4.546]
[1742846083339,0.01,2093.4,2093.2,5.556881]
[1742846084243,0.01,2093.4,2093.2,4.546]
[1742846084549,4.78693,2093.4,2093.2,4.546]
[1742846084946,4.78697,2093.4,2093.2,4.546]
[1742846085263,4.77714,2093.3,2093.2,4.546]
[1742846085460,4.78706,2093.4,2093.2,4.546]
[1742846085651,4.78706,2093.4,2093.2,5.59252803]
[1742846086299,0.01,2093.4,2093.2,5.59252803]
[1742846086580,4.78693,2093.4,2093.2,5.59252803]
[1742846087170,0.01,2093.4,2093.2,5.59252803]
[1742846087473,0.01,2093.4,2093.3,25.257]
[1742846087661,0.01,2093.4,2093.3,29.15885997]
[1742846089569,0.01,2093.4,2093.3,29.97565997]
[1742846089776,0.01,2093.4,2093.3,34.75279997]
[1742846090147,0.10260916,2093.4,2093.3,29.97565997]
[1742846090450,0.01,2093.4,2093.3,34.75279997]
[1742846090675,0.10268037,2093.4,2093.3,34.75279997]
[1742846091542,0.01,2093.4,2093.3,34.75279997]
[1742846091784,0.10268037,2093.4,2093.3,34.75279997]
[1742846094992,0.10268037,2093.4,2093.3,29.97565997]
[1742846095564,0.10268037,2093.4,2093.3,33.70185997]
[1742846095762,0.01,2093.4,2093.3,33.70185997]
[1742846096311,4.78691,2093.4,2093.3,33.70185997]
[1742846096486,4.8814178,2093.4,2093.3,33.70185997]
[1742846096690,0.1045078,2093.4,2093.3,33.70185997]
[1742846097566,0.1045078,2093.4,2093.3,29.15885997]
[1742846097769,0.1045078,2093.4,2093.3,34.45955997]
[1742846097958,4.78691,2093.4,2093.3,33.70185997]
[1742846098159,4.8814178,2093.4,2093.3,25.257]
[1742846098383,4.8814178,2093.4,2093.3,29.8]
[1742846098590,4.8814178,2093.4,2093.3,25.257]
[1742846098884,4.8814178,2093.4,2093.3,29.799]
[1742846100270,0.1045078,2093.4,2093.3,34.57614]
[1742846100598,0.01,2093.4,2093.3,38.93929303]
[1742846100802,0.01,2093.4,2093.3,34.16215303]
[1742846100963,0.01,2093.4,2093.3,38.93929303]
[1742846101375,0.01,2093.4,2093.3,34.16215303]
[1742846101576,0.01,2093.4,2093.3,33.36805303]
[1742846101775,4.78691,2093.4,2093.3,33.36805303]
[1742846102496,4.78691,2093.4,2093.3,28.82605303]
[1742846102680,4.78691,2093.4,2093.3,25.257]
[1742846102886,4.78691,2093.4,2093.3,29.799]
[1742846104605,4.77646,2093.6,2093.3,29.799]
[1742846104807,0.7782,2093.7,2093.3,29.799]
[1742846105102,4.77688,2093.5,2093.3,29.799]
[1742846105411,4.77688,2093.5,2093.3,29.43828651]
[1742846105412,4.77691,2093.4,2093.3,29.43828651]
[1742846105609,4.77691,2093.4,2093.3,33.98028651]
[1742846105807,4.77691,2093.4,2093.3,25.257]
[1742846105970,5.53621,2093.4,2093.3,29.799]
[1742846106167,4.77691,2093.4,2093.3,25.257]
[1742846106368,4.77739,2093.2,2093.0,25.248]
[1742846106714,4.77739,2093.2,2093.1,4.542]
[1742846107876,4.7776,2093.1,2093.0,25.248]
[1742846108075,5.5995,2093.1,2093.0,25.248]
[1742846108297,5.5995,2093.1,2093.0,29.79]
[1742846110405,8.5995,2093.1,2093.0,25.248]
[1742846110701,10.114905,2093.1,2093.0,25.248]
[1742846111204,6.8319,2093.1,2093.0,25.248]
[1742846111379,10.7876,2093.1,2093.0,25.248]
[1742846111587,6.01,2093.1,2093.0,25.248]
[1742846112281,10.7876,2093.1,2093.0,25.248]
[1742846113504,6.01,2093.1,2093.0,25.248]
[1742846114071,10.7876,2093.1,2093.0,25.248]
[1742846114278,10.7876,2093.1,2093.0,29.791]
[1742846114686,6.01,2093.1,2093.0,29.791]
[1742846115006,6.01,2093.1,2093.0,33.5796]
[1742846115421,6.01,2093.1,2093.0,38.35743]
[1742846115615,6.01,2093.1,2093.0,33.5796]
[1742846115919,10.7876,2093.1,2093.0,29.791]
[1742846116800,10.7876,2093.1,2093.0,29.792]
[1742846116997,4.7776,2093.1,2093.0,29.792]
[1742846118312,5.5709,2093.1,2093.0,29.793]
[1742846118511,8.5709,2093.1,2093.0,29.793]
[1742846120131,10.984455,2093.1,2093.0,25.248]
[1742846120424,10.984455,2093.1,2093.0,29.791]
[1742846122930,16.994455,2093.1,2093.0,29.791]
[1742846123140,4.77902,2092.5,2092.4,25.254]
[1742846124302,4.77902,2092.5,2092.4,29.797]
[1742846124500,5.57202,2092.5,2092.4,29.797]
[1742846125912,4.77902,2092.5,2092.4,29.797]
[1742846131363,6.01,2092.7,2092.4,32.7767]
[1742846131531,10.78861,2092.7,2092.4,33.576]
[1742846131733,15.56732,2092.7,2092.4,33.576]
[1742846132108,15.56725,2092.7,2092.4,33.576]
[1742846132617,4.77874,2092.6,2092.4,33.576]
[1742846132822,4.77874,2092.6,2092.5,3.835532]
[1742846133009,4.77897,2092.5,2092.4,32.7767]
[1742846134136,4.77897,2092.5,2092.4,29.797]
[1742846134526,9.55773,2092.6,2092.4,29.797]
[1742846134711,4.77897,2092.5,2092.4,29.797]
[1742846136037,4.77897,2092.5,2092.4,25.254]
[1742846136243,7.119621,2092.5,2092.4,29.798]
[1742846137144,7.119621,2092.5,2092.4,25.254]
[1742846137445,7.119621,2092.5,2092.4,29.798]
[1742846138647,7.119621,2092.5,2092.4,25.254]
[1742846139027,4.7792,2092.4,2092.3,4.544]
[1742846140514,12.4569631,2092.4,2092.3,4.544]
[1742846140951,4.78034,2091.9,2091.8,25.26]
[1742846141146,4.78034,2091.9,2091.8,29.804]
[1742846141455,4.78013,2092.0,2091.8,29.804]
[1742846142254,0.7542,2092.3,2091.8,29.804]
[1742846142255,4.77957,2092.3,2091.9,0.7961]
[1742846142423,4.77957,2092.3,2092.0,3.06001]
[1742846142753,9.5592,2092.3,2092.0,3.06001]
[1742846143126,4.77989,2092.1,2091.9,0.7961]
[1742846143349,4.77978,2092.2,2091.9,0.7961]
[1742846143851,6.01,2092.4,2091.9,0.7961]
[1742846143852,4.77988,2092.1,2091.9,0.7961]
[1742846144316,4.77966,2092.2,2091.9,0.7961]
[1742846144520,9.55952,2092.2,2091.9,0.7961]
[1742846145249,4.7799,2092.1,2091.9,0.7961]
[1742846146250,4.77966,2092.2,2091.9,4.334183]
[1742846146555,4.77956,2092.3,2091.9,4.334183]
[1742846146852,4.77979,2092.2,2091.9,4.334183]
[1742846147571,4.7799,2092.1,2091.9,4.334183]
[1742846148368,9.55964,2092.2,2091.9,4.334183]
[1742846148661,4.77979,2092.2,2091.9,4.334183]
[1742846149453,4.7799,2092.1,2091.9,4.334183]
[1742846149849,9.55996,2092.1,2091.9,4.334183]
[1742846150017,4.78011,2092.0,2091.9,4.334183]
[1742846150223,9.56002,2092.1,2091.9,4.334183]
[1742846150422,9.56001,2092.1,2091.9,4.334183]
[1742846150624,4.78011,2092.0,2091.8,29.804]
[1742846151018,4.77996,2092.1,2091.8,29.804]